[Event "Early-Titled-Tuesday-Blitz-March-26-2024"]
[Site "Chess.com"]
[Date "2024.03.26"]
[Round "2"]
[White "Dewarfd"]
[Black "Aisen1011"]
[Result "0-1"]
[WhiteElo "2160"]
[BlackElo "2477"]
[TimeControl "180+1"]
[EndTime "8:17:09 PDT"]
[Termination "Aisen1011 won on time"]

1. c4 {[%clk 0:02:58.9]} 1... c5 {[%clk 0:02:59.6]} 2. Nc3 {[%clk 0:02:56.8]}
2... e6 {[%clk 0:02:59.8]} 3. e4 {[%clk 0:02:55.6]} 3... Nc6 {[%clk 0:02:57.7]}
4. g3 {[%clk 0:02:54.1]} 4... Bd6 {[%clk 0:02:54.9]} 5. Bg2 {[%clk 0:02:53.8]}
5... Nge7 {[%clk 0:02:55.3]} 6. Nge2 {[%clk 0:02:53.8]} 6... O-O {[%clk
0:02:55.1]} 7. d4 {[%clk 0:02:53.8]} 7... cxd4 {[%clk 0:02:55.1]} 8. Nxd4 {[%clk
0:02:54.7]} 8... Nxd4 {[%clk 0:02:55.1]} 9. Qxd4 {[%clk 0:02:54.2]} 9... Bc7
{[%clk 0:02:55.3]} 10. Be3 {[%clk 0:02:21.8]} 10... Nc6 {[%clk 0:02:50.1]} 11.
Qd2 {[%clk 0:02:19.5]} 11... Ne5 {[%clk 0:02:49.5]} 12. b3 {[%clk 0:02:05.9]}
12... Ba5 {[%clk 0:02:49.1]} 13. a3 {[%clk 0:01:42.5]} 13... Qf6 {[%clk
0:02:47.6]} 14. Bd4 {[%clk 0:01:38.1]} 14... Nf3+ {[%clk 0:02:44.8]} 15. Bxf3
{[%clk 0:01:26.5]} 15... Qxf3 {[%clk 0:02:45.7]} 16. O-O {[%clk 0:01:26.3]}
16... e5 {[%clk 0:02:33.9]} 17. Be3 {[%clk 0:01:03.4]} 17... d5 {[%clk
0:01:49.5]} 18. Qe2 {[%clk 0:00:57.8]} 18... Qxe2 {[%clk 0:01:19.9]} 19. Nxe2
{[%clk 0:00:57]} 19... d4 {[%clk 0:01:14.7]} 20. b4 {[%clk 0:00:26.1]} 20... Bc7
{[%clk 0:01:10.2]} 21. Bd2 {[%clk 0:00:21.3]} 21... Bh3 {[%clk 0:01:10.1]} 22.
Rfd1 {[%clk 0:00:18.3]} 22... Bg4 {[%clk 0:01:09.3]} 23. Re1 {[%clk 0:00:17.6]}
23... Bf3 {[%clk 0:01:09.3]} 24. Nc1 {[%clk 0:00:17.1]} 24... f5 {[%clk
0:01:07.7]} 25. exf5 {[%clk 0:00:15.2]} 25... e4 {[%clk 0:01:08]} 26. Nb3 {[%clk
0:00:13.7]} 26... Rad8 {[%clk 0:01:06.8]} 27. Bf4 {[%clk 0:00:12.4]} 27... Bxf4
{[%clk 0:01:06.4]} 28. gxf4 {[%clk 0:00:13.3]} 28... Rxf5 {[%clk 0:01:06.8]} 29.
Rad1 {[%clk 0:00:10.4]} 29... Bxd1 {[%clk 0:01:06.4]} 30. Rxd1 {[%clk
0:00:10.5]} 30... Rxf4 {[%clk 0:01:06.7]} 31. Rxd4 {[%clk 0:00:08.5]} 31... Rxd4
{[%clk 0:01:06.3]} 32. Nxd4 {[%clk 0:00:09.4]} 32... Rf8 {[%clk 0:00:53.5]} 33.
Kg2 {[%clk 0:00:07.7]} 33... Rd8 {[%clk 0:00:53.2]} 34. Nf5 {[%clk 0:00:02.8]}
34... Rd3 {[%clk 0:00:52.1]} 35. a4 {[%clk 0:00:02.4]} 35... g6 {[%clk 0:00:52]}
36. Ne7+ {[%clk 0:00:01.3]} 36... Kf7 {[%clk 0:00:52.2]} 0-1

[Event "Early-Titled-Tuesday-Blitz-March-26-2024"]
[Site "Chess.com"]
[Date "2024.03.26"]
[Round "2"]
[White "profedechess93"]
[Black "ChristopherYoo"]
[Result "0-1"]
[WhiteElo "2647"]
[BlackElo "2975"]
[TimeControl "180+1"]
[EndTime "8:17:10 PDT"]
[Termination "ChristopherYoo won by resignation"]

1. e4 {[%clk 0:03:00.9]} 1... e5 {[%clk 0:02:58.4]} 2. Nf3 {[%clk 0:03:00.5]}
2... Nc6 {[%clk 0:02:58.2]} 3. Bc4 {[%clk 0:03:00]} 3... Bc5 {[%clk 0:02:56.2]}
4. b4 {[%clk 0:02:58.6]} 4... Bxb4 {[%clk 0:02:54.3]} 5. c3 {[%clk 0:02:58.5]}
5... Be7 {[%clk 0:02:54.7]} 6. d4 {[%clk 0:02:58.3]} 6... Na5 {[%clk 0:02:53.7]}
7. Be2 {[%clk 0:02:58.1]} 7... d6 {[%clk 0:02:52.1]} 8. Qa4+ {[%clk 0:02:58.7]}
8... c6 {[%clk 0:02:49.9]} 9. dxe5 {[%clk 0:02:59.2]} 9... dxe5 {[%clk
0:02:49.3]} 10. Nxe5 {[%clk 0:03:00.1]} 10... Nf6 {[%clk 0:02:42.2]} 11. O-O
{[%clk 0:02:58.8]} 11... O-O {[%clk 0:02:42.1]} 12. Rd1 {[%clk 0:02:48.6]} 12...
Qc7 {[%clk 0:02:39.7]} 13. Nf3 {[%clk 0:02:33.5]} 13... Bg4 {[%clk 0:02:12]} 14.
h3 {[%clk 0:02:33.4]} 14... Bxf3 {[%clk 0:02:10.2]} 15. Bxf3 {[%clk 0:02:33.1]}
15... b5 {[%clk 0:02:10.7]} 16. Qc2 {[%clk 0:02:32.2]} 16... Nc4 {[%clk
0:02:09.7]} 17. Bg5 {[%clk 0:02:30.9]} 17... Ne5 {[%clk 0:01:55.2]} 18. Be2
{[%clk 0:02:27.6]} 18... Ng6 {[%clk 0:01:43.5]} 19. Nd2 {[%clk 0:02:23.5]} 19...
Nf4 {[%clk 0:01:39.3]} 20. Bf3 {[%clk 0:02:12.6]} 20... Rad8 {[%clk 0:01:25.6]}
21. a4 {[%clk 0:02:02.9]} 21... a5 {[%clk 0:01:05.2]} 22. axb5 {[%clk
0:01:44.6]} 22... cxb5 {[%clk 0:01:03.7]} 23. Bxf4 {[%clk 0:01:45.3]} 23... Qxf4
{[%clk 0:01:03.5]} 24. Rxa5 {[%clk 0:01:44.5]} 24... b4 {[%clk 0:01:01.5]} 25.
Rf5 {[%clk 0:01:37]} 25... Qc7 {[%clk 0:00:59.2]} 26. c4 {[%clk 0:01:34.2]}
26... Nd7 {[%clk 0:00:49.5]} 27. Nb3 {[%clk 0:01:28.4]} 27... Ne5 {[%clk
0:00:46.4]} 28. Rd5 {[%clk 0:01:14.3]} 28... Qxc4 {[%clk 0:00:36.3]} 29. Qb1
{[%clk 0:01:03.1]} 29... Nxf3+ {[%clk 0:00:33.8]} 30. gxf3 {[%clk 0:00:46.2]}
30... g6 {[%clk 0:00:32.1]} 31. Nd2 {[%clk 0:00:45.7]} 31... Qe2 {[%clk
0:00:28.7]} 32. Rfe5 {[%clk 0:00:42]} 32... Bf6 {[%clk 0:00:23]} 33. Qf1 {[%clk
0:00:25.7]} 33... Qxf1+ {[%clk 0:00:21.4]} 34. Nxf1 {[%clk 0:00:26.6]} 34...
Bxe5 {[%clk 0:00:21.6]} 35. Rxe5 {[%clk 0:00:27.5]} 35... b3 {[%clk 0:00:21.9]}
0-1

[Event "Early-Titled-Tuesday-Blitz-March-26-2024"]
[Site "Chess.com"]
[Date "2024.03.26"]
[Round "2"]
[White "JaackCamel"]
[Black "Tugrik1969"]
[Result "0-1"]
[WhiteElo "2196"]
[BlackElo "2492"]
[TimeControl "180+1"]
[EndTime "8:17:15 PDT"]
[Termination "Tugrik1969 won by resignation"]

1. d4 {[%clk 0:03:00.9]} 1... d5 {[%clk 0:02:59.3]} 2. c4 {[%clk 0:03:00.2]}
2... e6 {[%clk 0:02:58.9]} 3. Nc3 {[%clk 0:02:59.5]} 3... a6 {[%clk 0:02:58.1]}
4. cxd5 {[%clk 0:02:56.9]} 4... exd5 {[%clk 0:02:57.5]} 5. Bf4 {[%clk
0:02:54.7]} 5... Nf6 {[%clk 0:02:54.6]} 6. e3 {[%clk 0:02:54.3]} 6... Bd6 {[%clk
0:02:51.8]} 7. Bxd6 {[%clk 0:02:52.6]} 7... Qxd6 {[%clk 0:02:52.7]} 8. Bd3
{[%clk 0:02:51.5]} 8... O-O {[%clk 0:02:52.3]} 9. Qc2 {[%clk 0:02:49.2]} 9...
Re8 {[%clk 0:02:50.6]} 10. Nf3 {[%clk 0:02:47]} 10... c6 {[%clk 0:02:45.8]} 11.
O-O {[%clk 0:02:45.2]} 11... Nbd7 {[%clk 0:02:35.4]} 12. h3 {[%clk 0:02:43]}
12... Nf8 {[%clk 0:02:34.4]} 13. Na4 {[%clk 0:02:37.9]} 13... Ne4 {[%clk
0:02:26.3]} 14. Bxe4 {[%clk 0:02:32.4]} 14... dxe4 {[%clk 0:02:27.2]} 15. Ne5
{[%clk 0:02:25.4]} 15... Ng6 {[%clk 0:02:14.2]} 16. Nxg6 {[%clk 0:02:18.2]}
16... Qxg6 {[%clk 0:02:10.4]} 17. Nb6 {[%clk 0:02:16.5]} 17... Bxh3 {[%clk
0:02:07.4]} 18. f4 {[%clk 0:01:47.2]} 18... Rad8 {[%clk 0:01:49.9]} 19. Kh2
{[%clk 0:01:38.2]} 19... Bf5 {[%clk 0:01:47.5]} 20. Rh1 {[%clk 0:01:37.2]} 20...
Re6 {[%clk 0:01:34.1]} 21. Rae1 {[%clk 0:01:22.4]} 21... Qg4 {[%clk 0:01:22.7]}
22. Kg1 {[%clk 0:01:18.4]} 22... h5 {[%clk 0:01:22.1]} 23. Qf2 {[%clk
0:01:06.1]} 23... Red6 {[%clk 0:00:37.6]} 24. b4 {[%clk 0:01:00.7]} 24... a5
{[%clk 0:00:36.8]} 25. Nc4 {[%clk 0:00:50.1]} 25... Rd5 {[%clk 0:00:34.7]} 26.
Ne5 {[%clk 0:00:45.7]} 26... Rxe5 {[%clk 0:00:34.1]} 27. fxe5 {[%clk 0:00:42.3]}
27... axb4 {[%clk 0:00:35]} 28. Rf1 {[%clk 0:00:38.3]} 28... g6 {[%clk
0:00:34.2]} 29. Rh3 {[%clk 0:00:31.3]} 29... Kh7 {[%clk 0:00:25.6]} 30. Rg3
{[%clk 0:00:28]} 30... Qh4 {[%clk 0:00:25.1]} 31. Qe1 {[%clk 0:00:19.7]} 31...
Ra8 {[%clk 0:00:22.6]} 32. Qd2 {[%clk 0:00:16.7]} 32... Qxg3 {[%clk 0:00:21.1]}
0-1

[Event "Early-Titled-Tuesday-Blitz-March-26-2024"]
[Site "Chess.com"]
[Date "2024.03.26"]
[Round "2"]
[White "CSB7"]
[Black "Oligan22"]
[Result "1-0"]
[WhiteElo "2776"]
[BlackElo "2407"]
[TimeControl "180+1"]
[EndTime "8:17:18 PDT"]
[Termination "CSB7 won on time"]

1. e4 {[%clk 0:03:00.9]} 1... c6 {[%clk 0:02:59.8]} 2. d4 {[%clk 0:02:54.8]}
2... d5 {[%clk 0:02:59.8]} 3. exd5 {[%clk 0:02:55.7]} 3... cxd5 {[%clk
0:02:59.9]} 4. Bd3 {[%clk 0:02:56.3]} 4... Nf6 {[%clk 0:02:57.1]} 5. h3 {[%clk
0:02:52.5]} 5... Qc7 {[%clk 0:02:51.1]} 6. Ne2 {[%clk 0:02:45.8]} 6... Nc6
{[%clk 0:02:50.3]} 7. Bf4 {[%clk 0:02:42.1]} 7... Qb6 {[%clk 0:02:43.2]} 8. Nbc3
{[%clk 0:02:40.5]} 8... e6 {[%clk 0:02:38.1]} 9. Nb5 {[%clk 0:02:37.2]} 9... e5
{[%clk 0:02:02.6]} 10. dxe5 {[%clk 0:02:38.1]} 10... Ne4 {[%clk 0:02:02.9]} 11.
O-O {[%clk 0:02:16.7]} 11... Be6 {[%clk 0:01:48.4]} 12. c4 {[%clk 0:01:14.1]}
12... O-O-O {[%clk 0:01:30.2]} 13. Bxe4 {[%clk 0:01:06.8]} 13... dxe4 {[%clk
0:01:31.1]} 14. Qc2 {[%clk 0:01:07]} 14... a6 {[%clk 0:01:12.3]} 15. Nd6+ {[%clk
0:01:02.9]} 15... Bxd6 {[%clk 0:01:09.4]} 16. exd6 {[%clk 0:01:03.8]} 16... Qc5
{[%clk 0:00:56.6]} 17. b3 {[%clk 0:00:48.3]} 17... f5 {[%clk 0:00:54.2]} 18. Qc3
{[%clk 0:00:43.2]} 18... Rhg8 {[%clk 0:00:43.4]} 19. Rad1 {[%clk 0:00:41.5]}
19... g5 {[%clk 0:00:37.4]} 20. Be3 {[%clk 0:00:41.3]} 20... Qe5 {[%clk
0:00:37.1]} 21. Qxe5 {[%clk 0:00:30.5]} 21... Nxe5 {[%clk 0:00:38]} 22. Bb6
{[%clk 0:00:23]} 22... Rd7 {[%clk 0:00:37.2]} 23. c5 {[%clk 0:00:23.2]} 23... f4
{[%clk 0:00:19]} 24. Nd4 {[%clk 0:00:23.6]} 24... Bd5 {[%clk 0:00:19.4]} 25. Nf5
{[%clk 0:00:23.1]} 25... Bc6 {[%clk 0:00:09.9]} 26. Ne7+ {[%clk 0:00:22.8]}
26... Rxe7 {[%clk 0:00:07.2]} 27. dxe7 {[%clk 0:00:23.7]} 27... Nd3 {[%clk
0:00:07.8]} 28. f3 {[%clk 0:00:23.1]} 28... Re8 {[%clk 0:00:05.8]} 29. fxe4
{[%clk 0:00:23.6]} 29... Bxe4 {[%clk 0:00:03.5]} 30. Rxd3 {[%clk 0:00:23.7]}
30... Bxd3 {[%clk 0:00:03.2]} 31. Rd1 {[%clk 0:00:24.3]} 1-0

[Event "Early-Titled-Tuesday-Blitz-March-26-2024"]
[Site "Chess.com"]
[Date "2024.03.26"]
[Round "2"]
[White "PeshkaCh"]
[Black "KanalSzachowy"]
[Result "1-0"]
[WhiteElo "2849"]
[BlackElo "2437"]
[TimeControl "180+1"]
[EndTime "8:17:21 PDT"]
[Termination "PeshkaCh won by checkmate"]

1. e4 {[%clk 0:03:00.9]} 1... c5 {[%clk 0:02:57.4]} 2. b3 {[%clk 0:03:00.9]}
2... g6 {[%clk 0:02:56.3]} 3. Bb2 {[%clk 0:03:01.1]} 3... Nf6 {[%clk 0:02:56.2]}
4. e5 {[%clk 0:03:01.7]} 4... Nd5 {[%clk 0:02:56.4]} 5. Nf3 {[%clk 0:03:02.3]}
5... Bg7 {[%clk 0:02:54.8]} 6. Nc3 {[%clk 0:03:01.2]} 6... Nxc3 {[%clk
0:02:42.5]} 7. dxc3 {[%clk 0:02:52.8]} 7... Nc6 {[%clk 0:02:41.2]} 8. Qe2 {[%clk
0:02:43.7]} 8... O-O {[%clk 0:02:34.9]} 9. O-O-O {[%clk 0:02:42.4]} 9... Qa5
{[%clk 0:02:21.4]} 10. Kb1 {[%clk 0:02:41]} 10... a6 {[%clk 0:02:05.1]} 11. h4
{[%clk 0:02:34.7]} 11... b5 {[%clk 0:01:52.8]} 12. h5 {[%clk 0:02:34.2]} 12...
c4 {[%clk 0:01:28.4]} 13. hxg6 {[%clk 0:02:32.8]} 13... fxg6 {[%clk 0:01:25]}
14. Qe4 {[%clk 0:02:30.9]} 14... e6 {[%clk 0:01:19.5]} 15. Ng5 {[%clk
0:02:03.3]} 15... Rxf2 {[%clk 0:01:12.7]} 16. Rxh7 {[%clk 0:01:56.4]} 16... Rf5
{[%clk 0:01:08.6]} 17. Qh4 {[%clk 0:01:52.7]} 17... Rxg5 {[%clk 0:01:05.1]} 18.
Rxg7+ {[%clk 0:01:52.8]} 18... Kxg7 {[%clk 0:01:05.2]} 19. Qxg5 {[%clk
0:01:53.7]} 19... Qd8 {[%clk 0:01:03.6]} 20. Qf4 {[%clk 0:01:32.1]} 20... Qf8
{[%clk 0:00:53.5]} 21. Qxf8+ {[%clk 0:00:51.8]} 21... Kxf8 {[%clk 0:00:53.8]}
22. Ba3+ {[%clk 0:00:52.7]} 22... Kf7 {[%clk 0:00:47.6]} 23. Bd6 {[%clk
0:00:47.2]} 23... Bb7 {[%clk 0:00:47.5]} 24. bxc4 {[%clk 0:00:41.8]} 24... bxc4
{[%clk 0:00:30.8]} 25. Bxc4 {[%clk 0:00:42.7]} 25... Rc8 {[%clk 0:00:26.9]} 26.
Be2 {[%clk 0:00:30.2]} 26... Rh8 {[%clk 0:00:21.1]} 27. Bf3 {[%clk 0:00:24.4]}
27... Rh2 {[%clk 0:00:19.5]} 28. Be4 {[%clk 0:00:20.7]} 28... Rh4 {[%clk
0:00:14.5]} 29. Bf3 {[%clk 0:00:15.3]} 29... Rc4 {[%clk 0:00:14.2]} 30. Rf1
{[%clk 0:00:13.8]} 30... Rxc3 {[%clk 0:00:13.6]} 31. Bxc6+ {[%clk 0:00:13.6]}
31... Ke8 {[%clk 0:00:13.3]} 32. Rf8# {[%clk 0:00:13.4]} 1-0

[Event "Early-Titled-Tuesday-Blitz-March-26-2024"]
[Site "Chess.com"]
[Date "2024.03.26"]
[Round "2"]
[White "WilsonPalencia21"]
[Black "Taran2004"]
[Result "0-1"]
[WhiteElo "2589"]
[BlackElo "2408"]
[TimeControl "180+1"]
[EndTime "8:17:24 PDT"]
[Termination "Taran2004 won by checkmate"]

1. d4 {[%clk 0:03:00.9]} 1... Nf6 {[%clk 0:02:49.6]} 2. c4 {[%clk 0:03:00.2]}
2... c5 {[%clk 0:02:42.8]} 3. d5 {[%clk 0:03:00.1]} 3... b5 {[%clk 0:02:43.2]}
4. cxb5 {[%clk 0:03:01]} 4... a6 {[%clk 0:02:43.3]} 5. bxa6 {[%clk 0:03:01.9]}
5... d6 {[%clk 0:02:42.6]} 6. Nc3 {[%clk 0:03:02.8]} 6... Bxa6 {[%clk
0:02:42.4]} 7. e4 {[%clk 0:03:02.7]} 7... Bxf1 {[%clk 0:02:43.3]} 8. Kxf1 {[%clk
0:03:03.6]} 8... g6 {[%clk 0:02:43.8]} 9. g3 {[%clk 0:03:04.3]} 9... Bg7 {[%clk
0:02:44.4]} 10. Kg2 {[%clk 0:03:05.2]} 10... O-O {[%clk 0:02:44.8]} 11. Nf3
{[%clk 0:03:06.1]} 11... Nbd7 {[%clk 0:02:44.2]} 12. a4 {[%clk 0:03:06.6]} 12...
Qb6 {[%clk 0:02:40.5]} 13. Qc2 {[%clk 0:03:00.7]} 13... Rfb8 {[%clk 0:02:39.4]}
14. Ra3 {[%clk 0:02:57.4]} 14... Ne8 {[%clk 0:02:38.6]} 15. Nb5 {[%clk
0:02:56.3]} 15... Nc7 {[%clk 0:02:38.8]} 16. Nxc7 {[%clk 0:02:55.9]} 16... Qxc7
{[%clk 0:02:39]} 17. b3 {[%clk 0:02:54.4]} 17... Qa5 {[%clk 0:02:32.7]} 18. Bd2
{[%clk 0:02:46.6]} 18... Qb6 {[%clk 0:02:32.9]} 19. Rb1 {[%clk 0:02:29]} 19...
Ne5 {[%clk 0:02:25]} 20. Nxe5 {[%clk 0:02:20.9]} 20... Bxe5 {[%clk 0:02:25.9]}
21. b4 {[%clk 0:02:21]} 21... cxb4 {[%clk 0:01:04.4]} 22. Rxb4 {[%clk
0:02:20.6]} 22... Qa6 {[%clk 0:01:03]} 23. Rxb8+ {[%clk 0:02:17.6]} 23... Rxb8
{[%clk 0:01:03.9]} 24. Be3 {[%clk 0:02:15.8]} 24... Rb2 {[%clk 0:01:03.2]} 25.
Qc6 {[%clk 0:01:58.8]} 25... Qe2 {[%clk 0:01:00.2]} 26. a5 {[%clk 0:01:57.9]}
26... Rb1 {[%clk 0:00:57.8]} 27. Qa4 {[%clk 0:00:58.4]} 27... Qf1+ {[%clk
0:00:54.3]} 28. Kf3 {[%clk 0:00:58.3]} 28... Qh1+ {[%clk 0:00:54.5]} 29. Kg4
{[%clk 0:00:58.2]} 29... Qxh2 {[%clk 0:00:46.3]} 30. Kf3 {[%clk 0:00:38.6]}
30... Qh5+ {[%clk 0:00:36.1]} 31. g4 {[%clk 0:00:34.2]} 31... Qh3+ {[%clk
0:00:35.9]} 32. Ke2 {[%clk 0:00:34.1]} 32... Qxg4+ {[%clk 0:00:35.5]} 33. Kd2
{[%clk 0:00:34.3]} 33... Qg1 {[%clk 0:00:30.3]} 34. Ke2 {[%clk 0:00:25.1]} 34...
Rb2+ {[%clk 0:00:24.7]} 35. Kf3 {[%clk 0:00:23.6]} 35... Qh1+ {[%clk 0:00:21.3]}
36. Kg4 {[%clk 0:00:20.6]} 36... Qh5# {[%clk 0:00:21.4]} 0-1

[Event "Early-Titled-Tuesday-Blitz-March-26-2024"]
[Site "Chess.com"]
[Date "2024.03.26"]
[Round "2"]
[White "chessdjw"]
[Black "RebelJohnny"]
[Result "1-0"]
[WhiteElo "2806"]
[BlackElo "2557"]
[TimeControl "180+1"]
[EndTime "8:17:29 PDT"]
[Termination "chessdjw won by checkmate"]

1. d4 {[%clk 0:02:43.6]} 1... d5 {[%clk 0:02:58.6]} 2. c4 {[%clk 0:02:43.6]}
2... dxc4 {[%clk 0:02:59.5]} 3. Nf3 {[%clk 0:02:40]} 3... Nf6 {[%clk 0:02:57.8]}
4. e3 {[%clk 0:02:40.4]} 4... e6 {[%clk 0:02:57.1]} 5. Bxc4 {[%clk 0:02:40.6]}
5... c5 {[%clk 0:02:56.1]} 6. O-O {[%clk 0:02:40.5]} 6... a6 {[%clk 0:02:50]} 7.
Be2 {[%clk 0:02:40.7]} 7... Be7 {[%clk 0:02:30.4]} 8. dxc5 {[%clk 0:02:37.6]}
8... Bxc5 {[%clk 0:02:22.7]} 9. Qxd8+ {[%clk 0:02:35.5]} 9... Kxd8 {[%clk
0:02:23.6]} 10. Nfd2 {[%clk 0:02:32.8]} 10... b6 {[%clk 0:02:14.9]} 11. Nb3
{[%clk 0:02:15.2]} 11... Bd6 {[%clk 0:02:08.9]} 12. Rd1 {[%clk 0:02:13.4]} 12...
Ke7 {[%clk 0:02:08.6]} 13. N1d2 {[%clk 0:02:08]} 13... Bb7 {[%clk 0:02:02.5]}
14. Nc4 {[%clk 0:02:07.9]} 14... Bc7 {[%clk 0:02:02.2]} 15. f3 {[%clk
0:02:01.5]} 15... Nbd7 {[%clk 0:02:01.8]} 16. e4 {[%clk 0:02:01.6]} 16... Rac8
{[%clk 0:01:49.1]} 17. Be3 {[%clk 0:02:01.6]} 17... b5 {[%clk 0:01:49]} 18. Nca5
{[%clk 0:02:00.3]} 18... Ba8 {[%clk 0:01:46.6]} 19. a4 {[%clk 0:01:56.1]} 19...
bxa4 {[%clk 0:01:03.4]} 20. Rxa4 {[%clk 0:01:54.5]} 20... Bb6 {[%clk 0:00:46.2]}
21. Bxb6 {[%clk 0:01:46.5]} 21... Nxb6 {[%clk 0:00:47.1]} 22. Rb4 {[%clk
0:01:47]} 22... Nbd7 {[%clk 0:00:47]} 23. Bxa6 {[%clk 0:01:40.6]} 23... Rb8
{[%clk 0:00:47]} 24. Rb5 {[%clk 0:01:23.5]} 24... Rxb5 {[%clk 0:00:39]} 25. Bxb5
{[%clk 0:01:22.9]} 25... Rb8 {[%clk 0:00:39.4]} 26. Nd4 {[%clk 0:01:11]} 26...
Rb6 {[%clk 0:00:18.5]} 27. b4 {[%clk 0:00:58.1]} 27... e5 {[%clk 0:00:12]} 28.
Nf5+ {[%clk 0:00:55.9]} 28... Kd8 {[%clk 0:00:04.3]} 29. Bxd7 {[%clk 0:00:45.5]}
29... Nxd7 {[%clk 0:00:05.2]} 30. Nc4 {[%clk 0:00:45.5]} 30... Rxb4 {[%clk
0:00:04.3]} 31. Nxe5 {[%clk 0:00:46]} 31... Rb7 {[%clk 0:00:04.3]} 32. Nxg7
{[%clk 0:00:36]} 32... Ke7 {[%clk 0:00:04.3]} 33. Nf5+ {[%clk 0:00:34.8]} 33...
Ke6 {[%clk 0:00:03.5]} 34. Nc6 {[%clk 0:00:27.7]} 34... Rb2 {[%clk 0:00:02.4]}
35. Rd6# {[%clk 0:00:26.9]} 1-0

[Event "Early-Titled-Tuesday-Blitz-March-26-2024"]
[Site "Chess.com"]
[Date "2024.03.26"]
[Round "2"]
[White "Brahianzevich"]
[Black "jakopogi"]
[Result "0-1"]
[WhiteElo "2453"]
[BlackElo "2785"]
[TimeControl "180+1"]
[EndTime "8:17:29 PDT"]
[Termination "jakopogi won by resignation"]

1. e4 {[%clk 0:02:55.1]} 1... e5 {[%clk 0:02:58.8]} 2. Nf3 {[%clk 0:02:54.4]}
2... Nc6 {[%clk 0:02:59.2]} 3. Bb5 {[%clk 0:02:53.9]} 3... a6 {[%clk 0:02:59.5]}
4. Ba4 {[%clk 0:02:54.4]} 4... Nf6 {[%clk 0:02:58.6]} 5. O-O {[%clk 0:02:55]}
5... d6 {[%clk 0:02:59]} 6. Re1 {[%clk 0:02:54.7]} 6... Bd7 {[%clk 0:02:57.7]}
7. c3 {[%clk 0:02:54.9]} 7... g6 {[%clk 0:02:58]} 8. d4 {[%clk 0:02:53.7]} 8...
Bg7 {[%clk 0:02:58.5]} 9. Bc2 {[%clk 0:02:46.7]} 9... O-O {[%clk 0:02:58]} 10.
Nbd2 {[%clk 0:02:46.9]} 10... Nh5 {[%clk 0:02:54.1]} 11. Nf1 {[%clk 0:02:33.6]}
11... Qe8 {[%clk 0:02:50.4]} 12. h3 {[%clk 0:02:10.7]} 12... f5 {[%clk
0:02:49.5]} 13. exf5 {[%clk 0:02:03.3]} 13... gxf5 {[%clk 0:02:50.4]} 14. dxe5
{[%clk 0:01:59.9]} 14... dxe5 {[%clk 0:02:50.5]} 15. Ng3 {[%clk 0:01:07]} 15...
Nxg3 {[%clk 0:02:49.7]} 16. fxg3 {[%clk 0:01:07.9]} 16... e4 {[%clk 0:02:49]}
17. Nh4 {[%clk 0:01:04.2]} 17... Ne5 {[%clk 0:02:45.6]} 18. Rf1 {[%clk
0:00:59.2]} 18... Be6 {[%clk 0:02:39.6]} 19. Bf4 {[%clk 0:00:52]} 19... Rd8
{[%clk 0:02:39.8]} 20. Qc1 {[%clk 0:00:51.9]} 20... Nd3 {[%clk 0:02:40.1]} 21.
Bxd3 {[%clk 0:00:48.7]} 21... Rxd3 {[%clk 0:02:41]} 22. Bh6 {[%clk 0:00:35.8]}
22... Qe7 {[%clk 0:02:35.3]} 23. Bg5 {[%clk 0:00:14.3]} 23... Qc5+ {[%clk
0:02:34.7]} 24. Kh2 {[%clk 0:00:13.4]} 24... Kh8 {[%clk 0:02:31.9]} 25. Rd1
{[%clk 0:00:13]} 25... Be5 {[%clk 0:02:29.8]} 26. Bf4 {[%clk 0:00:12.5]} 26...
Rg8 {[%clk 0:02:27.8]} 27. Rxd3 {[%clk 0:00:12.3]} 27... exd3 {[%clk 0:02:27.3]}
28. Qd2 {[%clk 0:00:10.1]} 28... Bxf4 {[%clk 0:02:24]} 29. Qxf4 {[%clk
0:00:09.3]} 29... Qd5 {[%clk 0:01:53.6]} 30. Re1 {[%clk 0:00:09.9]} 30... d2
{[%clk 0:01:48.3]} 31. Rd1 {[%clk 0:00:10.2]} 31... Rd8 {[%clk 0:01:44.1]} 32.
Nf3 {[%clk 0:00:10.7]} 32... Qe4 {[%clk 0:01:40.7]} 33. Rxd2 {[%clk 0:00:10.5]}
33... Rxd2 {[%clk 0:01:39]} 34. Qxd2 {[%clk 0:00:11.4]} 34... Bd5 {[%clk
0:01:35.3]} 35. Qd4+ {[%clk 0:00:11.4]} 35... Kg8 {[%clk 0:01:33.9]} 36. b3
{[%clk 0:00:10.9]} 36... Qxd4 {[%clk 0:01:30.9]} 37. Nxd4 {[%clk 0:00:11.8]}
37... Be4 {[%clk 0:01:31.2]} 38. g4 {[%clk 0:00:11.9]} 38... fxg4 {[%clk
0:01:31.3]} 39. hxg4 {[%clk 0:00:12.8]} 39... Kf7 {[%clk 0:01:30]} 40. Kg3
{[%clk 0:00:13.4]} 40... c5 {[%clk 0:01:29.9]} 41. Nf3 {[%clk 0:00:13.2]} 41...
Bb1 {[%clk 0:01:29.3]} 42. a3 {[%clk 0:00:13.1]} 42... a5 {[%clk 0:01:27.6]} 43.
Kf4 {[%clk 0:00:12.9]} 43... Ke6 {[%clk 0:01:27.5]} 44. b4 {[%clk 0:00:13.3]}
44... cxb4 {[%clk 0:01:27.3]} 45. cxb4 {[%clk 0:00:14.2]} 45... a4 {[%clk
0:01:27.5]} 46. Nd4+ {[%clk 0:00:13.7]} 46... Kd5 {[%clk 0:01:27]} 47. Nf5
{[%clk 0:00:13.9]} 47... b6 {[%clk 0:01:23]} 48. g5 {[%clk 0:00:12.7]} 48... Kc4
{[%clk 0:01:23]} 49. Nd6+ {[%clk 0:00:12]} 49... Kb3 {[%clk 0:01:22.6]} 50. Nb5
{[%clk 0:00:11.1]} 50... Bd3 {[%clk 0:01:23]} 51. Nd4+ {[%clk 0:00:08.4]} 51...
Kxa3 {[%clk 0:01:23.5]} 52. Ke3 {[%clk 0:00:07.1]} 52... Bg6 {[%clk 0:01:22.4]}
53. b5 {[%clk 0:00:06.3]} 53... Kb2 {[%clk 0:01:22.5]} 54. Ne2 {[%clk 0:00:02]}
54... a3 {[%clk 0:01:22.8]} 55. Kd2 {[%clk 0:00:02.4]} 55... a2 {[%clk
0:01:23.1]} 0-1